Cogmind - Beta 16 @@@ ROGUE MODE // 2026.01.05 @ 01:30:10 Player: souux Result: Escaped! Performance ------------- Evolutions (9) 4500 Regions Visited (17) 3400 Robots Destroyed (88) 440 Value Destroyed (2288) 2288 Prototype IDs (62) 1240 Alien Tech Used (0) 0 Bonus (7117) 7117 TOTAL SCORE: 18985 Bonus ------- High Alert Combat Kills 91 Follower Combat Kills 726 Aligned with FarCom 300 Met Warlord at Base 500 MAIN.C Attacked Warlord 500 Met Warlord at Research 2000 Win 3000 Cogmind --------- Core Integrity 1600/1600 Matter 280/300 Energy 530/630 System Corruption 0% Temperature Warm (189) Movement Flying (16) Location To Epsilon Eridani Parts ------- > --- POWER (2) -------- Cooled Antimatter Reactor Quantum Reactor > --- PROPULSION (11) -- Improved Cesium-ion Thruster Cooled VTOL Module Cooled VTOL Module Nuclear Pulse Array Cooled Impulse Thruster Impulse Thruster Array Impulse Thruster Array Cooled Q-thruster > --- UTILITY (10) ----- Advanced Cooling System Medium Storage Unit Structural Scanner Spectral Analyzer Long-range Terrain Scanner Advanced Terrain Scan Processor Advanced Terrain Scan Processor Advanced Transmission Jammer Centrium Light Armor Plating System Mapper > --- WEAPON (2) ------- Enhanced Nova Cannon Lance > --- INVENTORY (10) --- Micro Antimatter Reactor Light Quantum Reactor Matter Compressor (250) Experimental Cloaking Device Layered Medium Armor Plating Improved Hacking Suite Compact HERF Cannon Improved Plasma Cutter Peak State ------------ > --- POWER ------------ Quantum Reactor Quantum Reactor > --- PROPULSION ------- Improved Cesium-ion Thruster Cooled VTOL Module Cooled VTOL Module Nuclear Pulse Array Cooled Impulse Thruster Impulse Thruster Array Impulse Thruster Array Cooled Q-thruster > --- UTILITY ---------- Advanced Cooling System Medium Storage Unit Structural Scanner Spectral Analyzer Long-range Terrain Scanner Advanced Terrain Scan Processor Advanced Terrain Scan Processor Advanced Transmission Jammer Experimental Cloaking Device System Mapper > --- WEAPON ----------- Enhanced Nova Cannon Lance > --- INVENTORY -------- Micro Antimatter Reactor Light Quantum Reactor Matter Compressor Layered Medium Armor Plating Compact HERF Cannon Improved Plasma Cutter [Rating: 173] Favorites ----------- Power Heavy Deuterium Engine Engine Heavy Deuterium Engine Power Core Fission Core Reactor Quantum Reactor Propulsion Improved VTOL Module Treads Light Treads Leg Aluminum Leg Hover Unit Aerolev Unit Flight Unit Improved VTOL Module Utility Advanced Terrain Scan Processor Device Advanced Cooling System Storage Large Storage Unit Processor Advanced Terrain Scan Processor Hackware Advanced System Shield Protection Hardened Medium Armor Plating Weapon Lance Energy Gun EM Pulse Gun Energy Cannon Phase Cannon Ballistic Gun Assault Rifle Ballistic Cannon Light Cannon Launcher Mini Grenade Launcher Special Weapon Improved Plasma Cutter Impact Weapon Great Maul Piercing Weapon Lance Build | -11 -10 -10 -10 -9 -8 -7 -7 -6 -5 -4 -4 -4 -4 -3 -3 -2 -1 ------- Run | Yrd Mat Min Exi Min Mat Fac Sto Fac Fac Fac Upp Upp War Pro Res Res Acc Slots Evolved 18 | . . . . . 4 2 . 2 2 2 . . . . 2 2 2 Power 1 | . . . . . . . . . . 1 . . . . . . . Propulsion 9 | . . . . . 2 1 . 1 . . . . . . 2 1 2 Utility 8 | . . . . . 2 1 . 1 2 1 . . . . . 1 . Weapon . | . . . . . . . . . . . . . . . . . . Parts Attached 121 | 7 10 2 4 1 4 7 13 12 8 12 1 2 9 . 5 20 4 Power 16 | 1 1 . . 1 . 1 2 . . . 1 2 2 . 1 3 1 Engine 8 | 1 1 . . 1 . 1 2 . . . . 1 1 . . . . Core 2 | . . . . . . . . . . . 1 1 . . . . . Reactor 6 | . . . . . . . . . . . . . 1 . 1 3 1 Propulsion 27 | 2 4 . 2 . 1 1 4 4 2 . . . 1 . 2 3 1 Treads 4 | . 2 . 2 . . . . . . . . . . . . . . Leg 4 | 2 2 . . . . . . . . . . . . . . . . Wheel . | . . . . . . . . . . . . . . . . . . Hover 5 | . . . . . . . 1 4 . . . . . . . . . Flight 14 | . . . . . 1 1 3 . 2 . . . 1 . 2 3 1 Utility 53 | 2 1 . 2 . 2 3 3 6 4 12 . . 5 . 2 9 2 Device 21 | 1 . . . . 1 . 2 2 1 5 . . 3 . . 6 . Storage 6 | 1 1 . 2 . . . . . . . . . . . . 2 . Processor 9 | . . . . . . 2 . 2 1 1 . . 1 . 1 1 . Hackware 7 | . . . . . . . . 1 2 3 . . . . 1 . . Protection 10 | . . . . . 1 1 1 1 . 3 . . 1 . . . 2 Artifact . | . . . . . . . . . . . . . . . . . . Weapon 25 | 2 4 2 . . 1 2 4 2 2 . . . 1 . . 5 . Energy Gun 1 | 1 . . . . . . . . . . . . . . . . . Energy Cannon 3 | . . . . . . . . . 1 . . . . . . 2 . Ballistic Gun 4 | 1 1 . . . . . 2 . . . . . . . . . . Ballistic Cannon 9 | . 3 1 . . . . 2 1 . . . . . . . 2 . Launcher 3 | . . 1 . . 1 . . . . . . . . . . 1 . Special Weapon 1 | . . . . . . . . . . . . . 1 . . . . Impact Weapon 2 | . . . . . . 2 . . . . . . . . . . . Slashing Weapon . | . . . . . . . . . . . . . . . . . . Piercing Weapon 2 | . . . . . . . . 1 1 . . . . . . . . Special Melee Weapon . | . . . . . . . . . . . . . . . . . . Unidentified Prototypes 24 | . . . . . . 1 7 1 . . . . 5 . 1 7 2 Parts Lost 4 | . 1 . . . . . 1 . . . . . . . 2 . . Power . | . . . . . . . . . . . . . . . . . . Propulsion . | . . . . . . . . . . . . . . . . . . Utility 3 | . . . . . . . 1 . . . . . . . 2 . . Weapon 1 | . 1 . . . . . . . . . . . . . . . . Highest Loss Streak 2 | . 1 . . . . . 1 . . . . . . . 2 . . To Critical Strikes . | . . . . . . . . . . . . . . . . . . Average Backups 7 | 5 9 10 8 9 9 5 10 14 5 4 5 5 5 5 4 8 7 Power 1 | . 1 1 1 1 1 1 2 2 1 . . . . 1 . 1 2 Propulsion 2 | 3 3 3 1 1 3 . 3 7 . . . . . 1 . . . Utility 3 | . 2 4 4 5 3 3 3 3 2 2 3 2 2 2 2 3 3 Weapon 1 | . 1 2 1 1 1 . 1 1 1 1 1 1 . . . 1 1 Tool/Special . | . . . . . . . . . . . . . . . . . . Unused Backups 25 | 1 3 . 1 . . 2 6 3 1 4 . . 1 . . . 3 Power 6 | . 1 . . . . 1 2 . 1 1 . . . . . . . Propulsion 10 | 1 2 . 1 . . 1 4 1 . . . . . . . . . Utility 5 | . . . . . . . . 1 . 2 . . . . . . 2 Weapon 4 | . . . . . . . . 1 . 1 . . 1 . . . 1 Tool/Special . | . . . . . . . . . . . . . . . . . . Average Slot Usage (%) 90 | . 100 100 100 100 62 70 75 79 96 92 94 94 98 94 91 86 87 Engine 6 | . 14 14 14 14 9 7 7 6 5 5 3 . 8 . . . . Reactor 1 | . . . . . . . . . . . . . . 5 5 8 8 Treads 3 | . 2 28 28 28 . . . . . . . . . . . . . Leg 3 | . 25 . . . . . . . . . . . . . . . . Flight 19 | . . . . . 8 15 15 19 33 30 31 31 31 31 33 29 32 Device 13 | . 14 14 14 14 9 7 6 6 5 16 21 21 16 15 9 15 17 Storage 5 | . 14 14 14 14 9 7 7 6 . . . . . . . 3 4 Processor 10 | . . . . . . 9 15 13 15 12 15 15 15 15 18 17 12 Hackware 5 | . . . . . . . . 5 15 10 10 10 10 10 9 4 4 Protection 2 | . . . . . 8 7 7 6 4 4 . . 3 5 4 . 2 Energy Cannon 2 | . . . . . . . . . 4 5 5 5 5 5 4 . 3 Ballistic Gun 1 | . 13 . . . . . . . . . . . . . . . . Ballistic Cannon 6 | . 14 27 28 25 9 . 5 6 . . . . . . . . . Impact Weapon 1 | . . . . . . 6 7 1 . . . . . . . . . Piercing Weapon 2 | . . . . . . . . 4 5 5 5 5 1 5 4 4 4 Peak Build Rating 173 | 7 8 8 10 11 40 55 68 81 77 94 99 100 115 110 134 156 173 Average Rating 71 | 6 7 8 9 10 38 50 63 78 74 84 94 94 106 110 115 143 172 On Entrance 63 | . 7 8 8 10 11 40 55 67 80 77 94 94 94 110 110 134 146 Avg Prop Armor Cover (%) 2 | . 9 . . . . . . 1 . . . . 1 . . . . Naked Turns . | . . . . . . . . . . . . . . . . . . Heaviest Build 75 | 15 22 22 52 32 35 41 49 48 32 32 29 28 33 31 45 59 75 Greatest Support 85 | 20 40 40 40 40 50 55 56 60 36 36 36 32 41 41 50 59 85 Greatest Overweight (x) 9 | 1 1 . 1 . . . . 5 . . . . 9 . . . . Average Overweight (x) . | . . . . . . . . . . . . . . . . . . Largest Inventory Capacity 20 | 8 10 10 20 15 15 15 15 15 15 5 5 5 5 5 5 15 10 Average Capacity 9 | 7 9 10 11 15 15 15 15 15 5 5 5 5 5 5 5 9 10 Most Carried 15 | 8 10 10 11 13 15 8 15 15 15 5 5 5 5 5 5 10 8 Average Carried 8 | 5 9 10 10 12 9 5 10 14 5 4 5 5 4 5 4 8 7 Final Capacity 15 | 8 10 10 15 15 15 15 15 15 5 5 5 5 5 5 5 10 10 Final Carried 15 | 7 10 10 11 13 9 6 15 15 5 5 5 5 5 5 4 10 8 Class Distribution -------------------- 41% | Mutant 31% | Hacker-Ninja 9% | Hacker-Scout 8% | Scavenger-Mutant 4% | Hacker-Sprinter Dominant Class ---------------- Mutant | -10/Materials Scavenger-Mutant | -10/Mines Mutant | -10/Exiles Mutant | -9/Mines Mutant | -8/Materials Mutant | -7/Factory Mutant | -7/Storage Mutant | -6/Factory Hacker-Sprinter | -5/Factory Hacker-Scout | -4/Factory Hacker-Ninja | -4/Upper Caves Hacker-Ninja | -4/Upper Caves Hacker-Scout | -4/Warlord Hacker-Ninja | -3/Proximity Caves Hacker-Scout | -3/Research Hacker-Ninja | -2/Research Hacker-Ninja | -1/Access Resources | -11 -10 -10 -10 -9 -8 -7 -7 -6 -5 -4 -4 -4 -4 -3 -3 -2 -1 ----------- Run | Yrd Mat Min Exi Min Mat Fac Sto Fac Fac Fac Upp Upp War Pro Res Res Acc Matter Collected 3215 | 321 608 29 . 319 . 122 429 250 93 229 10 20 130 . 85 510 60 Remotely . | . . . . . . . . . . . . . . . . . . Salvage Created 3245 | 217 540 49 . 366 . 46 840 282 24 313 . 114 . . 162 223 69 Parts 168 | 18 43 9 . 21 . . 28 6 2 11 . 2 . . 7 17 4 Haulers Intercepted 7 | . 2 . . . . . 3 . . 1 . . . . . 1 . Recyclers Shooed 2 | . . . . . . . . 1 . 1 . . . . . . . Parts Field Recycled . | . . . . . . . . . . . . . . . . . . Retrieved Matter . | . . . . . . . . . . . . . . . . . . Parts Self-Destructed 6 | . . . . . . . . . . . 4 2 . . . . . Prevented . | . . . . . . . . . . . . . . . . . . Parts Restored . | . . . . . . . . . . . . . . . . . . Kills | -11 -10 -10 -10 -9 -8 -7 -7 -6 -5 -4 -4 -4 -4 -3 -3 -2 -1 ------- Run | Yrd Mat Min Exi Min Mat Fac Sto Fac Fac Fac Upp Upp War Pro Res Res Acc Combat Hostiles Destroyed 46 | . 14 6 . 10 . . 15 . . 1 . . . . . . . Melee 4 | . . . . . . . 3 . . 1 . . . . . . . Guns 3 | . 3 . . . . . . . . . . . . . . . . Cannons 22 | . 11 . . 3 . . 8 . . . . . . . . . . AOE 13 | . . 6 . 7 . . . . . . . . . . . . . Classes Destroyed 13 | 2 4 . . 1 . 1 4 . . . . 1 . . . . . Builder 5 | . . . . . . 2 . . 1 1 . . . . . 1 . Tunneler 8 | 6 . . . 1 . 1 . . . . . . . . . . . Hauler 7 | . 2 . . . . . 3 . . 1 . . . . . 1 . Recycler 9 | 1 1 . . 2 . . 1 2 . 1 . . . . 1 . . Operator 5 | . . . . . . . 1 . . . . . . . . 3 1 Watcher 8 | . 3 . . . . . . 1 . . . . . . 1 2 1 Swarmer 16 | . 6 6 . 4 . . . . . . . . . . . . . Grunt 20 | . 8 . . 5 . . 7 . . . . . . . . . . Brawler 1 | . . . . 1 . . . . . . . . . . . . . Sentry 7 | . . . . . . . 6 . . 1 . . . . . . . Hunter 1 | . . . . . . . 1 . . . . . . . . . . Programmer 1 | . . . . . . . 1 . . . . . . . . . . Packrat 1 | . . . . . . . . . . . . 1 . . . . . Samaritan 1 | . . . . . . . . . . . . 1 . . . . . Best Kill Streak 7 | 3 3 3 . 7 . 2 4 2 1 2 . . . . 1 2 1 Combat Bots Only 7 | . 3 3 . 7 . . 4 . . 1 . . . . . . . Max Kills in Single Turn 4 | 1 1 3 . 4 . 1 1 1 1 1 . 1 . . 1 1 1 Gunslinging . | . . . . . . . . . . . . . . . . . . Exploded 4 | . . 3 . 4 . . . . . . . . . . . . . Melee 1 | . . . . . . . 1 . . 1 . . . . . . . Uniques/NPCs Destroyed . | . . . . . . . . . . . . . . . . . . Combat | -11 -10 -10 -10 -9 -8 -7 -7 -6 -5 -4 -4 -4 -4 -3 -3 -2 -1 -------- Run | Yrd Mat Min Exi Min Mat Fac Sto Fac Fac Fac Upp Upp War Pro Res Res Acc Hostile Shots Fired 377 | . 50 10 . 40 17 . 161 6 5 15 7 17 8 10 30 1 . Missed 171 | . 10 5 . 10 8 . 83 2 2 7 7 10 5 5 17 . . Hits 206 | . 40 5 . 30 9 . 78 4 3 8 . 7 3 5 13 1 . Melee 3 | . . . . 3 . . . . . . . . . . . . . Projectile 203 | . 40 5 . 27 9 . 78 4 3 8 . 7 3 5 13 1 . AOE 1 | . . . . . . . . . . 1 . . . . . . . Critical Strikes 2 | . . . . . . . 1 . . . . . 1 . . . . Damage Taken 2552 | . 424 39 . 356 162 . 696 145 60 145 . 79 35 121 248 42 . Core 550 | . 121 . . 73 28 . 71 22 60 66 . 48 . . 61 . . Absorbed by Shields 11 | . . . . . . . . . . . . . 11 . . . . Regen/Repaired (Parts) 26 | . . . . . . . . . . 15 . . 11 . . . . Core Remaining (%) 88 | 100 . . . 22 94 . 89 97 94 . . . . 90 95 100 100 Volleys Fired 296 | 17 53 3 . 19 5 . 45 12 6 27 4 14 6 5 33 33 14 Largest 2 | 2 2 1 . 2 1 . 1 1 1 1 1 1 1 1 1 1 1 Hottest 120 | 60 60 30 . 60 30 . 40 40 85 85 85 85 85 85 85 120 120 Shots Fired 363 | 18 105 3 . 33 5 . 45 12 6 27 4 14 6 5 33 33 14 Gun 69 | 18 51 . . . . . . . . . . . . . . . . Cannon 285 | . 54 . . 28 4 . 45 12 6 27 4 14 6 5 33 33 14 Launcher 9 | . . 3 . 5 1 . . . . . . . . . . . . Special . | . . . . . . . . . . . . . . . . . . Kinetic 211 | 17 105 . . 28 4 . 45 12 . . . . . . . . . Thermal 142 | . . . . . . . . . 6 27 4 14 6 5 33 33 14 Explosive 9 | . . 3 . 5 1 . . . . . . . . . . . . Electromagnetic 1 | 1 . . . . . . . . . . . . . . . . . Robot Hit Streak 8 | 8 8 . . 4 . . 8 2 . . . 6 5 . . 2 . Robot Miss Streak 3 | 1 3 . . 3 . . 2 2 . . . 1 1 . . . . Penetration Max . | . . . . . . . . . . . . . . . . . . Secondary Targets . | . . . . . . . . . . . . . . . . . . Shots Hit Robots 186 | 13 57 . . 16 . 5 47 10 1 10 . 7 5 . 2 9 4 Core Hits 95 | 7 22 5 . 17 . 1 18 4 . 5 . 3 2 . 2 7 2 Critical Kills 1 | . . . . . . 1 . . . . . . . . . . . Critical Parts Destroyed 4 | . . . . . . 1 3 . . . . . . . . . . Critical Strikes 12 | . 2 . . 1 . 2 5 . . 1 . . . . . . 1 Blast 5 | . 2 . . 1 . . 2 . . . . . . . . . . Smash 5 | . . . . . . 2 3 . . . . . . . . . . Impale 2 | . . . . . . . . . . 1 . . . . . . 1 Melee Attacks 120 | . . . . . . 17 25 14 1 19 . 1 . . 12 24 7 Impact 43 | . . . . . . 17 25 1 . . . . . . . . . Slashing . | . . . . . . . . . . . . . . . . . . Piercing 77 | . . . . . . . . 13 1 19 . 1 . . 12 24 7 Sneak Attacks 19 | . . . . . . 4 3 1 1 3 . . . . 2 3 2 Combat Hostiles 1 | . . . . . . . 1 . . . . . . . . . . Follow-up Attacks . | . . . . . . . . . . . . . . . . . . Damage Inflicted 6248 | 168 865 270 . 613 . 268 1686 345 77 512 . 213 149 . 215 581 286 Guns 535 | 168 367 . . . . . . . . . . . . . . . . Cannons 2191 | . 498 . . 247 . . 916 130 . . . 213 149 . . 38 . Explosions 636 | . . 270 . 366 . . . . . . . . . . . . . Melee 2886 | . . . . . . 268 770 215 77 512 . . . . 215 543 286 Ramming . | . . . . . . . . . . . . . . . . . . Kinetic 2311 | 153 865 . . 247 . . 916 130 . . . . . . . . . Thermal 400 | . . . . . . . . . . . . 213 149 . . 38 . Explosive 636 | . . 270 . 366 . . . . . . . . . . . . . Electromagnetic 15 | 15 . . . . . . . . . . . . . . . . . Impact 1038 | . . . . . . 268 770 . . . . . . . . . . Slashing . | . . . . . . . . . . . . . . . . . . Piercing 1848 | . . . . . . . . 215 77 512 . . . . 215 543 286 Highest Corruption 1 | . . . . . . . 1 1 . . . . . . . . . Average Corruption 1 | . . . . . . . 1 1 . . . . . . . . . Corruption Purged . | . . . . . . . . . . . . . . . . . . Corruption Blocked . | . . . . . . . . . . . . . . . . . . Effects 1 | . . . . . . . 1 . . . . . . . . . . Energy Discharges 1 | . . . . . . . 1 . . . . . . . . . . Overload Shots . | . . . . . . . . . . . . . . . . . . Overflow Damage 763 | . . 28 . . . 122 283 34 37 139 . 64 . . . . 56 Projectiles 71 | . . . . . . . . 7 . . . 64 . . . . . Explosions 28 | . . 28 . . . . . . . . . . . . . . . Melee 664 | . . . . . . 122 283 27 37 139 . . . . . . 56 Knockbacks 8 | . 2 . . 1 . 1 4 . . . . . . . . . . Impact 4 | . . . . . . 1 3 . . . . . . . . . . Kinetic 4 | . 2 . . 1 . . 1 . . . . . . . . . . Secondary . | . . . . . . . . . . . . . . . . . . Self-Inflicted Damage 25 | . . 1 . . 24 . . . . . . . . . . . . Shots 2 | . . 1 . . 1 . . . . . . . . . . . . Rammed . | . . . . . . . . . . . . . . . . . . Targets Rammed . | . . . . . . . . . . . . . . . . . . Kicked . | . . . . . . . . . . . . . . . . . . Crushed . | . . . . . . . . . . . . . . . . . . Highest Temperature 287 | . 10 . . 102 4 . 98 . 17 210 23 24 112 287 48 168 166 Average Temperature 49 | . 4 . . 49 4 . 62 . 9 72 13 4 46 67 19 69 28 Received Heat Transfer 579 | . 123 . . 126 54 . 246 . . 30 . . . . . . . Effects 1 | . . . . . . . . . . . . . . 1 . . . Energy Bleed 1 | . . . . . . . . . . . . . . 1 . . . Siege Activations . | . . . . . . . . . . . . . . . . . . Martial Activations . | . . . . . . . . . . . . . . . . . . Shielding Activations . | . . . . . . . . . . . . . . . . . . Robots Disrupted . | . . . . . . . . . . . . . . . . . . Combat Hostiles . | . . . . . . . . . . . . . . . . . . Robots Corrupted 5 | . . . . . . . 5 . . . . . . . . . . Combat Hostiles 3 | . . . . . . . 3 . . . . . . . . . . Parts Fried 7 | . . . . . . 2 5 . . . . . . . . . . Impact Corruptions 17 | . . . . . . 5 12 . . . . . . . . . . Robots Melted . | . . . . . . . . . . . . . . . . . . Combat Hostiles . | . . . . . . . . . . . . . . . . . . Parts Melted . | . . . . . . . . . . . . . . . . . . Heat Transferred 463 | . . . . . . . . . . . . 259 167 . . 37 . Parts Sabotaged . | . . . . . . . . . . . . . . . . . . Parts Stolen . | . . . . . . . . . . . . . . . . . . Parts Stripped . | . . . . . . . . . . . . . . . . . . Power Chain Reactions . | . . . . . . . . . . . . . . . . . . Alert | -11 -10 -10 -10 -9 -8 -7 -7 -6 -5 -4 -4 -4 -4 -3 -3 -2 -1 ------- Run | Yrd Mat Min Exi Min Mat Fac Sto Fac Fac Fac Upp Upp War Pro Res Res Acc Maximum Alert Level 2 | . . . . . . . 2 1 . . . . . . . . . Low Security (%) 90 | 100 100 100 . 100 100 100 34 91 100 100 . . . . 100 100 100 Level 1 3 | . . . . . . . 21 8 . . . . . . . . . Level 2 5 | . . . . . . . 44 . . . . . . . . . . Level 3 . | . . . . . . . . . . . . . . . . . . Level 4 . | . . . . . . . . . . . . . . . . . . Level 5 . | . . . . . . . . . . . . . . . . . . High Security . | . . . . . . . . . . . . . . . . . . Max Security . | . . . . . . . . . . . . . . . . . . Peak Influence 541 | 10 129 154 . 171 77 30 541 233 69 153 . . . . 71 155 91 Initial 233 | . . 9 . . 57 30 1 233 21 18 . . . . 33 32 57 Average 77 | 1 55 108 . 53 56 5 297 77 20 30 . . . . 23 45 63 Influence Increases 3819 | 35 431 155 . 309 50 70 1007 208 112 323 45 105 336 60 130 299 144 Destroy 0b10 Robot/C 1220 | . 280 120 . 200 . . 420 . . 20 . . 180 . . . . Destroy 0b10 Robot/NC 220 | 35 30 . . 15 . 15 30 15 5 15 . . 5 . 10 35 10 Destroy Leader 272 | . 60 20 . 30 . . 138 2 . 12 . . . . 2 6 2 Allied During Kill 143 | . . . . . . . 82 . . . . . 61 . . . . Successful Hack 229 | . 27 . . . . 17 9 50 20 61 . . . . . 9 36 Disable Machine 210 | . 30 . . 45 . 15 60 . . . . . . . 15 15 30 Anti-Garrison Action 150 | . . . . . . . . . . . . . . . . 150 . Destroy Structure 295 | . 4 15 . 19 5 8 13 6 12 50 . . . . 28 84 51 Partial Spotted 210 | . . . . . 45 . 60 45 . 30 . . . . 15 . 15 Lose Combat Pursuer 870 | . . . . . . 15 195 90 75 135 45 105 90 60 60 . . Influence Decreases 3748 | 35 407 95 84 162 130 132 499 676 118 217 190 24 235 192 122 261 169 Entered New Map 955 | . . 15 84 . 90 37 4 280 24 21 55 . 81 182 17 26 39 Time Decay 2452 | 35 397 80 . 162 40 95 305 351 94 196 135 24 64 10 99 235 130 Lost Part 26 | . 10 . . . . . 10 . . . . . . . 6 . . Lost Ally 270 | . . . . . . . 180 . . . . . 90 . . . . Purge Threat 45 | . . . . . . . . 45 . . . . . . . . . Squads Dispatched 27 | . 2 . . . 2 1 5 3 2 5 . . . . 2 4 1 Investigation 2 | . . . . . . . . . . 1 . . . . . 1 . Extermination 8 | . . . . . . 1 2 2 . 1 . . . . 1 . 1 Reinforcement 17 | . 2 . . . 2 . 3 1 2 3 . . . . 1 3 . Assault . | . . . . . . . . . . . . . . . . . . Garrison . | . . . . . . . . . . . . . . . . . . Intercept . | . . . . . . . . . . . . . . . . . . Searches Triggered . | . . . . . . . . . . . . . . . . . . Construction Impeded . | . . . . . . . . . . . . . . . . . . Haulers Reinforced 3 | . . . . . . . 2 . . . . . . . . 1 . Active Scanning Responses . | . . . . . . . . . . . . . . . . . . Cargo Convoy Interrupts 1 | . . . . . . . . 1 . . . . . . . . . Stealth | -11 -10 -10 -10 -9 -8 -7 -7 -6 -5 -4 -4 -4 -4 -3 -3 -2 -1 --------- Run | Yrd Mat Min Exi Min Mat Fac Sto Fac Fac Fac Upp Upp War Pro Res Res Acc Distress Signals 20 | . 1 . . . 1 2 4 1 . . . . . . . 11 . Communications Jammed 1 | . . . . . . . . . . . . . . . . . 1 Distress Signals . | . . . . . . . . . . . . . . . . . . Times Spotted 211 | . 21 6 . 10 7 1 34 10 5 15 7 12 60 7 7 8 1 Peak Tracking Total 19 | . 4 3 . 4 6 2 10 5 4 7 3 5 19 8 7 2 1 Tactical Retreats 23 | . . . . . . 1 5 2 2 4 1 2 4 1 1 . . Traps | -11 -10 -10 -10 -9 -8 -7 -7 -6 -5 -4 -4 -4 -4 -3 -3 -2 -1 ------- Run | Yrd Mat Min Exi Min Mat Fac Sto Fac Fac Fac Upp Upp War Pro Res Res Acc Traps Triggered 14 | . 1 . . . . 1 5 4 2 1 . . . . . . . Indirectly . | . . . . . . . . . . . . . . . . . . Trap Hack Attempts . | . . . . . . . . . . . . . . . . . . Triggered . | . . . . . . . . . . . . . . . . . . Disarmed . | . . . . . . . . . . . . . . . . . . Reprogrammed . | . . . . . . . . . . . . . . . . . . Reused . | . . . . . . . . . . . . . . . . . . Traps Extracted . | . . . . . . . . . . . . . . . . . . Installed . | . . . . . . . . . . . . . . . . . . Triggered . | . . . . . . . . . . . . . . . . . . Machines | -11 -10 -10 -10 -9 -8 -7 -7 -6 -5 -4 -4 -4 -4 -3 -3 -2 -1 ---------- Run | Yrd Mat Min Exi Min Mat Fac Sto Fac Fac Fac Upp Upp War Pro Res Res Acc Machines Disabled 16 | . 2 . . 3 . 1 4 . . . . . 1 . 1 2 2 Max in Single Turn 1 | . 1 . . 1 . 1 1 . . . . . 1 . 1 1 1 Garrison Access 7 | . . . . . . . . 1 . 1 . . . . . 3 2 Machines Repaired . | . . . . . . . . . . . . . . . . . . Machines Dismantled 3 | . . . . . . . . . . . . . 1 . . . 2 Machines Sabotaged . | . . . . . . . . . . . . . . . . . . Overloaded Fab Kills . | . . . . . . . . . . . . . . . . . . Hacking | -11 -10 -10 -10 -9 -8 -7 -7 -6 -5 -4 -4 -4 -4 -3 -3 -2 -1 --------- Run | Yrd Mat Min Exi Min Mat Fac Sto Fac Fac Fac Upp Upp War Pro Res Res Acc Machines Accessed 66 | . 6 . 2 1 . 3 6 8 2 9 1 1 13 . 2 4 8 Terminals 37 | . 6 . . 1 . 3 6 6 2 5 . . . . 2 1 5 Fabricators 1 | . . . . . . . . . . 1 . . . . . . . Repair Stations 1 | . . . . . . . . . . 1 . . . . . . . Recycling Units . | . . . . . . . . . . . . . . . . . . Scanalyzers 3 | . . . . . . . . 1 . 1 . . . . . . 1 Garrison Access 7 | . . . . . . . . 1 . 1 . . . . . 3 2 Total Hacks 148 | . 21 . 2 1 . 6 10 17 10 28 1 1 23 . 4 12 12 Successful 93 | . 15 . 2 1 . 2 6 9 6 15 1 1 23 . 2 6 4 Failed 55 | . 6 . . . . 4 4 8 4 13 . . . . 2 6 8 Catastrophic 13 | . 2 . . . . 1 1 2 1 2 . . . . . 2 2 Database Lockouts . | . . . . . . . . . . . . . . . . . . Manual 38 | . 10 . 1 . . . . 6 1 10 . . . . 3 4 3 Terminals 98 | . 21 . . 1 . 6 10 15 10 18 . . . . 4 6 7 Fabricators 1 | . . . . . . . . . . 1 . . . . . . . Repair Stations 5 | . . . . . . . . . . 5 . . . . . . . Recycling Units . | . . . . . . . . . . . . . . . . . . Scanalyzers 4 | . . . . . . . . 1 . 2 . . . . . . 1 Garrison Access 13 | . . . . . . . . 1 . 2 . . . . . 6 4 Terminal Hacks 64 | . 8 . 2 1 . 2 6 4 5 6 1 1 23 . 1 3 1 Record 25 | . 1 . 1 . . . . . 2 . . . 21 . . . . Part Schematic 1 | . . . . . . . . . . . . . . . . 1 . Prototype ID Bank 7 | . 3 . . . . . 1 1 . . . . . . 1 . 1 Open Door 7 | . . . . . . . 3 . . . 1 1 2 . . . . Branch Access Points 1 | . . . . . . . . . . 1 . . . . . . . Emergency Access Points 2 | . . . . . . . . . . 1 . . . . . 1 . Terminal Index 2 | . . . . . . . 1 . 1 . . . . . . . . Alert Level 1 | . . . . . . . . 1 . . . . . . . . . Unreport Threat 1 | . . . . . . . . 1 . . . . . . . . . Locate Traps 3 | . . . . . . . . . 1 2 . . . . . . . Maintenance Status 2 | . 1 . . . . 1 . . . . . . . . . . . Surveillance Status 1 | . 1 . . . . . . . . . . . . . . . . Transport Status 1 | . . . . . . 1 . . . . . . . . . . . Recall Extermination 3 | . . . . . . . 1 . 1 1 . . . . . . . Recall Reinforcements 2 | . . . . . . . . 1 . 1 . . . . . . . Hauler Manifests 2 | . 2 . . . . . . . . . . . . . . . . Zone Layout 2 | . . . . 1 . . . . . . . . . . . 1 . Proto ID Catalog 1 | . . . 1 . . . . . . . . . . . . . . Fabricator Hacks . | . . . . . . . . . . . . . . . . . . Repair Station Hacks 4 | . . . . . . . . . . 4 . . . . . . . Scan Component 2 | . . . . . . . . . . 2 . . . . . . . Repair 1 | . . . . . . . . . . 1 . . . . . . . Refit 1 | . . . . . . . . . . 1 . . . . . . . Recycling Unit Hacks . | . . . . . . . . . . . . . . . . . . Scanalyzer 2 | . . . . . . . . 1 . 1 . . . . . . . Retrieve Study 2 | . . . . . . . . 1 . 1 . . . . . . . Garrison Access Hacks 6 | . . . . . . . . 1 . 1 . . . . . 2 2 Seal Access 6 | . . . . . . . . 1 . 1 . . . . . 2 2 Unauthorized Hacks 17 | . 7 . . . . . . 3 1 3 . . . . 1 1 1 Terminals 16 | . 7 . . . . . . 3 1 2 . . . . 1 1 1 Assimilate 1 | . . . . . . . . . . . . . . . 1 . . Botnet 10 | . 2 . . . . . . 3 1 2 . . . . . 1 1 Skim 5 | . 5 . . . . . . . . . . . . . . . . Fabricators 1 | . . . . . . . . . . 1 . . . . . . . Recompile 1 | . . . . . . . . . . 1 . . . . . . . Repair Stations . | . . . . . . . . . . . . . . . . . . Recycling Units . | . . . . . . . . . . . . . . . . . . Scanalyzers . | . . . . . . . . . . . . . . . . . . Garrison Access . | . . . . . . . . . . . . . . . . . . Data Cores Recovered 1 | . . . . . . . . . . . . . . . . . 1 Used . | . . . . . . . . . . . . . . . . . . Hacking Detections 39 | . 6 . . 1 . 2 3 7 2 7 . . . . 2 2 7 Full Trace Events 1 | . . . . . . . . . . . . . . . . 1 . Feedback Events . | . . . . . . . . . . . . . . . . . . Feedback Blocked . | . . . . . . . . . . . . . . . . . . Robot Schematics Acquired . | . . . . . . . . . . . . . . . . . . Robots Built . | . . . . . . . . . . . . . . . . . . Authchips . | . . . . . . . . . . . . . . . . . . Time . | . . . . . . . . . . . . . . . . . . Total Robot Build Rating . | . . . . . . . . . . . . . . . . . . Part Schematics Acquired 1 | . . . . . . . . . . . . . . . . 1 . Parts Built . | . . . . . . . . . . . . . . . . . . Authchips . | . . . . . . . . . . . . . . . . . . Time . | . . . . . . . . . . . . . . . . . . Total Part Build Rating . | . . . . . . . . . . . . . . . . . . Part Studies Acquired 2 | . . . . . . . . 1 . 1 . . . . . . . Parts Repaired 1 | . . . . . . . . . . 1 . . . . . . . Time 30 | . . . . . . . . . . 30 . . . . . . . Parts Recycled . | . . . . . . . . . . . . . . . . . . Recycled Matter . | . . . . . . . . . . . . . . . . . . Retrieved Matter . | . . . . . . . . . . . . . . . . . . Retrieved Components . | . . . . . . . . . . . . . . . . . . Parts Scanalyzed . | . . . . . . . . . . . . . . . . . . Part Schematics Acquired . | . . . . . . . . . . . . . . . . . . Parts Damaged . | . . . . . . . . . . . . . . . . . . Bothacking | -11 -10 -10 -10 -9 -8 -7 -7 -6 -5 -4 -4 -4 -4 -3 -3 -2 -1 ------------ Run | Yrd Mat Min Exi Min Mat Fac Sto Fac Fac Fac Upp Upp War Pro Res Res Acc Used RIF Installer . | . . . . . . . . . . . . . . . . . . Robots Hacked . | . . . . . . . . . . . . . . . . . . Non-combat . | . . . . . . . . . . . . . . . . . . Combat . | . . . . . . . . . . . . . . . . . . Robot Hacks Applied . | . . . . . . . . . . . . . . . . . . Relay Couplers Released 2 | . . . . . . . . . . . . . . . . 2 . Machine Destruction 2 | . . . . . . . . . . . . . . . . 2 . Fabnet Peak Effective % . | . . . . . . . . . . . . . . . . . . Robots Rewired 5 | . . . . . . . . . . . . . 5 . . . . Allies Hacked . | . . . . . . . . . . . . . . . . . . Hacks Repelled . | . . . . . . . . . . . . . . . . . . Allies | -11 -10 -10 -10 -9 -8 -7 -7 -6 -5 -4 -4 -4 -4 -3 -3 -2 -1 -------- Run | Yrd Mat Min Exi Min Mat Fac Sto Fac Fac Fac Upp Upp War Pro Res Res Acc Total Allies 16 | . . 2 . . . . 9 . . . . . 5 . . . . Largest Group 9 | . . 2 2 . . . 9 . . . . . 5 . . . . Highest-Rated Group 281 | . . 50 50 . . . 157 . . . . . 281 . . . . Highest-Rated Ally 64 | . . 31 31 . . . 29 . . . . . 64 . . . . Total Orders 14 | . . . . . . . . . . . . . 14 . . . . STAY 7 | . . . . . . . . . . . . . 7 . . . . FOLLOW 7 | . . . . . . . . . . . . . 7 . . . . Ally Attacks 125 | . . . . . . . 75 . . . . . 50 . . . . Total Damage 3409 | . . . . . . . 959 . . . . . 2450 . . . . Kills 18 | . . . . . . . 7 . . . . . 11 . . . . Allies Corrupted . | . . . . . . . . . . . . . . . . . . Allies Melted 4 | . . . . . . . . . . . . . 2 . . 2 . Intel | -11 -10 -10 -10 -9 -8 -7 -7 -6 -5 -4 -4 -4 -4 -3 -3 -2 -1 ------- Run | Yrd Mat Min Exi Min Mat Fac Sto Fac Fac Fac Upp Upp War Pro Res Res Acc Active Infowar (turns) 9322 | 132 1209 169 478 487 99 419 794 982 275 581 664 588 718 374 283 802 268 Optics 6566 | . . . . . . 237 794 982 275 581 664 588 718 374 283 802 268 Terrain 3673 | . . . . . . . . . . 217 664 588 718 374 211 633 268 Structural 1469 | . . . . . . . . . . 487 . . . . . 714 268 Seismic 3268 | 132 1209 169 478 487 99 419 275 . . . . . . . . . . Cloaking 49 | . . . . . . . . . . . . . 1 . . . 48 Jamming 1131 | . . . . . . . . . . 2 . . . . 59 802 268 Robot Analysis Total . | . . . . . . . . . . . . . . . . . . Derelict Logs Recovered 3 | . . . . 1 . . . . . . . 2 . . . . . Drone Launches . | . . . . . . . . . . . . . . . . . . Drone Recoveries . | . . . . . . . . . . . . . . . . . . Exploration | -11 -10 -10 -10 -9 -8 -7 -7 -6 -5 -4 -4 -4 -4 -3 -3 -2 -1 ------------- Run | Yrd Mat Min Exi Min Mat Fac Sto Fac Fac Fac Upp Upp War Pro Res Res Acc Turns Passed 9439 | 249 1209 169 478 487 99 419 794 982 275 581 664 588 718 374 283 802 268 Spaces Moved 12800 | 151 669 86 282 257 162 876 696 1941 747 965 418 704 1001 346 663 2271 565 Core 14 | 7 . . . . . . . . . . . . 7 . . . . Treads 673 | . 48 86 282 257 . . . . . . . . . . . . . Legs 765 | 144 621 . . . . . . . . . . . . . . . . Wheels . | . . . . . . . . . . . . . . . . . . Hover 3 | . . . . . . . . 3 . . . . . . . . . Flight 11345 | . . . . . 162 876 696 1938 747 965 418 704 994 346 663 2271 565 Fastest Speed 6 | 50 120 160 160 160 50 39 39 34 14 14 14 20 11 11 7 18 6 Average Speed 39 | 117 148 160 165 160 50 39 39 34 19 19 19 20 23 19 16 18 15 Slowest Speed 500 | 120 240 160 240 160 50 39 39 350 20 23 20 20 500 20 18 23 16 Overloaded Moves 142 | . . . . . . . . . 8 48 16 . 10 19 9 . 32 Propulsion Burnouts . | . . . . . . . . . . . . . . . . . . Robots Hopped 47 | . . . . . . 1 6 23 . 1 . 2 2 1 7 2 2 Potential Cave-ins 2 | . . . . . . . . . . . . . . . . 2 . Cave-ins Triggered . | . . . . . . . . . . . . . . . . . . Exploration Rate (%) 48 | 6 96 20 69 51 20 21 89 47 18 37 65 81 94 56 23 55 17 Regions Visited 17 Branch Regions 8 Pre-discovered Areas 4 | . . . 1 1 . . 1 . . . . . 1 . . . . Known Exits Taken 6 | . . . . . . 1 1 1 . 1 . . . . 1 1 . Unknown Exits Taken 11 | 1 1 1 1 1 1 . . . 1 . 1 1 1 1 . . . Scrap Searched 6 | . . . . . . . . . . . 1 3 . 2 . . . Spaces Dug 144 | . . 20 . . 5 8 6 4 6 22 2 7 . 2 14 31 17 Terrain Destroyed 208 | . . 20 . 26 5 8 13 6 6 31 4 8 1 5 16 42 17 Melee 43 | . . . . . . 8 6 4 . 4 . 1 . . 7 10 3 Projectile 114 | . . . . . . . 7 2 6 27 4 7 1 5 9 32 14 AOE 51 | . . 20 . 26 5 . . . . . . . . . . . . Terrain Rammed . | . . . . . . . . . . . . . . . . . . Walls Destroyed . | . . . . . . . . . . . . . . . . . . Machines Disabled . | . . . . . . . . . . . . . . . . . . Actions | -11 -10 -10 -10 -9 -8 -7 -7 -6 -5 -4 -4 -4 -4 -3 -3 -2 -1 --------- Run | Yrd Mat Min Exi Min Mat Fac Sto Fac Fac Fac Upp Upp War Pro Res Res Acc Total 16574 | 201 784 113 293 299 176 924 1120 2198 866 1297 994 1133 1465 645 777 2594 695 Wait 2901 | 16 34 21 . 21 . 15 243 209 87 251 571 412 381 296 61 206 77 Move 12698 | 150 668 85 281 256 161 873 684 1899 746 962 417 699 996 343 651 2266 561 Hop 37 | . . . . . . 1 5 18 . 1 . 2 2 1 4 2 1 Pick Up 68 | 9 7 . 2 1 1 3 16 6 1 5 . . 4 . 2 10 1 Fast Attach 76 | 7 4 . . . 1 3 6 7 7 11 1 2 8 . 3 14 2 Attach 28 | . 1 . . . 3 1 1 4 5 . . . . . 6 3 4 Detach 21 | . . . . . 2 . 3 4 . 2 . 1 . . 3 4 2 Swap 59 | . 5 4 5 2 . 3 9 7 2 6 . . 5 . . 9 2 Drop 125 | 2 12 . 5 . 3 8 15 12 11 13 1 2 14 . 2 23 2 Fire 296 | 17 53 3 . 19 5 . 45 12 6 27 4 14 6 5 33 33 14 Melee 120 | . . . . . . 17 25 14 1 19 . 1 . . 12 24 7 Ram . | . . . . . . . . . . . . . . . . . . Kick . | . . . . . . . . . . . . . . . . . . Crush . | . . . . . . . . . . . . . . . . . . Escape Stasis 74 | . . . . . . . 68 6 . . . . . . . . . Rewire 40 | . . . . . . . . . . . . . 40 . . . . Trap . | . . . . . . . . . . . . . . . . . . Miscellaneous 31 | . . . . . . . . . . . . . 9 . . . 22 Route ------- -11/Scrapyard -10/Materials (discovered 4 exits: [*Mat x2] / [*Min] / [*Sub]) -10/Mines -10/Exiles -9/Mines -8/Materials -7/Factory (discovered 3 exits: *Fac / *Sto / *Low) -7/Storage -6/Factory (discovered 3 exits: *Fac x2 / [*Low]) -5/Factory -4/Factory (discovered 3 exits: *Res / *Upp x2) -4/Upper Caves -4/Upper Caves (discovered 2 exits: *Res / *War) -4/Warlord -3/Proximity Caves -3/Research -2/Research (discovered 2 exits: *Acc / *Tes) -1/Access To Epsilon Eridani History --------- Turn | Location | Event 25 | -11/Scrapyard | Discovered new exit (range 15) 250 | -11/Scrapyard | Entered Materials 305 | -10/Materials | Build established: Mutant 487 | -10/Materials | Discovered new exit (range 10) 753 | -10/Materials | Discovered new exit (range 14) 986 | -10/Materials | Discovered new exit (range 14) 1184 | -10/Materials | Discovered new exit (range 9) 1331 | -10/Materials | Build established: Scavenger-Mutant 1459 | -10/Materials | Entered Mines 1581 | -10/Mines | Assembled infested the area 1598 | -10/Mines | Deemed a non-threat by the Exiles lab entrance 1598 | -10/Mines | Discovered new exit (range 5) 1628 | -10/Mines | Entered Exiles 1628 | -10/Exiles | Accompanied by 2 allies 1658 | -10/Exiles | Led the pair of lost Derelicts to a safe place 1668 | -10/Exiles | Met 8R-AWN 1694 | -10/Exiles | Met EX-HEX 1740 | -10/Exiles | Met EX-BIN 1758 | -10/Exiles | Aligned with FarCom system 1760 | -10/Exiles | Given EX-Vault access code 1796 | -10/Exiles | Opened EX-Vault 1813 | -10/Exiles | Found Flying Fortress v7 1847 | -10/Exiles | Warned to stay clear of 0b10 Research branches 1890 | -10/Exiles | Met EX-DEC 1898 | -10/Exiles | Learned location of Zion (-7) 2083 | -10/Exiles | Discovered new exit (range 14) 2106 | -10/Exiles | Left Exiles lab with Flying Fortress v7 2106 | -10/Exiles | Entered Mines 2111 | -9/Mines | Core integrity fell below 50% 2117 | -9/Mines | Build established: Mutant 2551 | -9/Mines | Destroyed 7 combat bots 2569 | -9/Mines | Discovered new exit (range 15) 2593 | -9/Mines | Entered Materials 2593 | -8/Materials | Evolved 4 slots: Propulsion x2, Utility x2 2686 | -8/Materials | Discovered new exit (range 14) 2692 | -8/Materials | Entered Factory 2692 | -7/Factory | Evolved 2 slots: Propulsion x1, Utility x1 2818 | -7/Factory | Allied Derelicts emerged from ambush trap array 2834 | -7/Factory | Discovered new exit (range 7) 2843 | -7/Factory | Identified exit to Lower Caves 2862 | -7/Factory | Discovered new exit (range 5) 2863 | -7/Factory | Identified exit to Factory 3091 | -7/Factory | Discovered new exit (range 5) 3102 | -7/Factory | Identified exit to Storage 3111 | -7/Factory | Entered Storage 3369 | -7/Storage | Assisted by bots powering up and referring to "LRC-V3" 3570 | -7/Storage | Lost 3 allies 3836 | -7/Storage | Discovered exit to Factory (range 12) 3843 | -7/Storage | Met 01-MTF 3851 | -7/Storage | Learned location of Armory (-3) 3905 | -7/Storage | Entered Factory 3905 | -6/Factory | Accompanied by 1 ally (01-MTF) 3905 | -6/Factory | Evolved 2 slots: Propulsion x1, Utility x1 3908 | -6/Factory | 01-MTF left 4193 | -6/Factory | Discovered new exit (range 5) 4196 | -6/Factory | Identified exit to Factory 4526 | -6/Factory | Discovered new exit (range 9) 4850 | -6/Factory | Cargo convoy interrupted 4869 | -6/Factory | Discovered exit to Factory (range 7) 4887 | -6/Factory | Entered another Factory area 4887 | -5/Factory | Evolved 2 slots: Utility x2 4909 | -5/Factory | Discovered new exit (range 18) 5088 | -5/Factory | Spotted B-75 Beast 5162 | -5/Factory | Entered another Factory area 5162 | -4/Factory | Evolved 2 slots: Power x1, Utility x1 5204 | -4/Factory | Repaired Imp. VTOL Module 5424 | -4/Factory | Discovered new exit (range 19) 5453 | -4/Factory | Identified exit to Upper Caves 5593 | -4/Factory | Spotted B-86 Titan 5743 | -4/Factory | Entered Upper Caves 5842 | -4/Upper Caves | Encountered a Warlord checkpoint 5944 | -4/Upper Caves | Build established: Hacker-Ninja 6255 | -4/Upper Caves | Found DCF Scrap (13 items) 6298 | -4/Upper Caves | Spotted B-86 Titan 6338 | -4/Upper Caves | Discovered new exit (range 16) 6405 | -4/Upper Caves | Attracted the attention of an 0b10 checkpoint 6407 | -4/Upper Caves | Entered another Upper Caves area 6422 | -4/Upper Caves | Discovered new exit (range 19) 6443 | -4/Upper Caves | Learned 12 Research zone layouts 6947 | -4/Upper Caves | Attracted the attention of an 0b10 checkpoint 6967 | -4/Upper Caves | Discovered new exit (range 9) 6995 | -4/Upper Caves | Entered Warlord 7117 | -4/Warlord | Visited the Vortex Lab 7139 | -4/Warlord | Warlord's base attacked by MAIN.C 7158 | -4/Warlord | Found Prototype Hackware 7160 | -4/Warlord | Found Prototype Processor 7160 | -4/Warlord | Identified Spectral Analyzer 7162 | -4/Warlord | Found Prototype Device 7162 | -4/Warlord | Identified System Purifier 7169 | -4/Warlord | Found Prototype Device 7169 | -4/Warlord | Identified Exp. Cloaking Device 7178 | -4/Warlord | Met Warlord 7192 | -4/Warlord | Learned 4 Research zone layouts 7192 | -4/Warlord | Learned 4 Quarantine zone layouts 7192 | -4/Warlord | Learned Armory recycling unit intel 7192 | -4/Warlord | Learned Research repair station intel 7192 | -4/Warlord | Learned Research recycling unit intel 7438 | -4/Warlord | Build established: Hacker-Scout 7489 | -4/Warlord | Warlord forces counterattacked 7527 | -4/Warlord | Spotted Striker 7528 | -4/Warlord | Spotted Striker 7542 | -4/Warlord | Allies destroyed Striker 7561 | -4/Warlord | Spotted B-90 Cyclops 7588 | -4/Warlord | Spotted Executioner 7633 | -4/Warlord | Spotted Executioner 7645 | -4/Warlord | Spotted Executioner 7648 | -4/Warlord | Spotted Striker 7653 | -4/Warlord | Spotted Striker 7680 | -4/Warlord | Opened side exit 7699 | -4/Warlord | Spotted Executioner 7701 | -4/Warlord | Lost 42 allies 7701 | -4/Warlord | Discovered new exit (range 9) 7713 | -4/Warlord | Entered Proximity Caves 7916 | -3/Proximity Caves | Build established: Hacker-Ninja 8084 | -3/Proximity Caves | Discovered new exit (range 12) 8087 | -3/Proximity Caves | Entered Research 8087 | -3/Research | Evolved 2 slots: Propulsion x2 8089 | -3/Research | Loaded intel: 4 repair station locations 8090 | -3/Research | Loaded intel: 5 recycling unit locations 8307 | -3/Research | Identified System Mapper 8316 | -3/Research | Spotted B-86 Titan 8350 | -3/Research | Discovered new exit (range 5) 8351 | -3/Research | Identified exit to Research 8370 | -3/Research | Entered another Research area 8370 | -2/Research | Warlord forces began assault on 0b10 8370 | -2/Research | Evolved 2 slots: Propulsion x1, Utility x1 8480 | -2/Research | Research machine network offline 8529 | -2/Research | Borebot progress halted 8535 | -2/Research | Met up with Warlord 8535 | -2/Research | Discovered new exit (range 3) 8535 | -2/Research | Identified exit to Testing 8545 | -2/Research | Found Prototype Launcher 8545 | -2/Research | Identified Enh. Gamma Bomb Array 8586 | -2/Research | Discovered new exit (range 8) 8588 | -2/Research | Identified exit to Access 8590 | -2/Research | Borebot progress halted 8639 | -2/Research | Spotted B-90 Cyclops 8663 | -2/Research | Spotted Striker 8836 | -2/Research | Spotted Striker 8891 | -2/Research | Spotted Striker 8906 | -2/Research | Found Prototype Processor 8906 | -2/Research | Identified Exp. Melee Analysis Suite 9090 | -2/Research | Spotted Striker 9090 | -2/Research | Spotted Striker 9105 | -2/Research | Met DD-05H 9166 | -2/Research | Borebot progress halted 9172 | -2/Research | Entered Access 9172 | -1/Access | Evolved 2 slots: Propulsion x2 9354 | -1/Access | Discovered new exit (range 15) 9440 | *** | Escaped! Last Messages --------------- Downloading prototype IDs... Exp. Reaction Control System Exp. Weapon Cycler Exp. Q-thruster Exp. EM Shield 09347_ Connecting with Scanalyzer... 09351_ Connecting with Garrison Access... >>Seal Access door sealed. 09354_ EXIT=FOUND 09355_ Connecting with Terminal... 09357_ Dismantling Sealed Barrier with Imp. Plasma Cutter. 09363_ K-01 Serf cleans the Terminal. 09363_ Dismantling Sealed Barrier with Imp. Plasma Cutter. 09387_ Sealed Barrier dismantled. 09390_ Dismantling Main Access Shell with Imp. Plasma Cutter. 09399_ Main Access Shell dismantled. Map ----- +----------------------------------------------------+ | ?????? ?????#??## ?? #"" ? " ?# # | | ????? ?####?? # ? ? # + ? ?? ? | | ????? ?? ????##? ? ? ? ??? # # | | ??????##??###?#?#########?############ ########## | | ???????#??#??##?####??################ # ? | | ???????#?#?#???##??######### # # ? ? | | ???????###?##?###??#####?### # # ? ?" | | ?????###?####???############ # # """ | | ????? ??#??????##?########## / + "?" | | ???? ? #?###?##?####?###### # # " | | ?????? #????##?######?##### # # ? ? | | ??????? ?###?############### # # | | ??????? ??################## # ########## | | ?????? #????###########?############" ####### | | ?????? ###?########################## ####### | | ????? ???############################# ####### " | | ??????? ??############################ ####### ? | | ????????############?##?#####?######## ####### | | ?????? ?############################## ####### | | ??????? ############################## ######? | | ?????? ??####################"####### ##?#### | | ?????? ## """" " ########## | | ????? ??## BB """" " ######### | | ???????### BB """" """""" " ######### | | ?????? """" " " " ######### | | ???????? """" " "@ " " ######### | | ???? ?? ?? """" " "" " " ######### | | ???? ??? ?"""" " ###### | | ?????###?# BB """" """" ###### | | ????? ? # ?BB """" """ """ ###### | | ?????? ? # """" """"T""" ###### | | ?????? ? #####################"####### ###?## | | ???? ? ############################# ###### ### | | #???? ############################# ###### ### | | ??????? #### # # ###### ### | | ??? ?? #### !# # ###### ### | | ?##?######### """S""" # " + #####? ??# | | #????####?### """ """ # "" # ###### ### | | ?? ? ? + # G # ##### | | ? ? ? ?### ## # "" # ##### | | ?? ?? ### ## # " # ##### ### | | ?### ## # # ##### ?# | | ####+#?### ## # # ##### # | | ?? ? ## ## ########## ##### ?# | | ? ? ## #########+################# ##### # | | # ? ?## ##### #? | | # ## ####? ? | | #####+####+###### ########################## ? ? | | # #### ########################## ??? | | # #### #####?##################?# #?? | +----------------------------------------------------+ Best States ------------- Heat Dissipation 83 Energy Generation 45 Energy Capacity 630 Matter Stores 300 Matter Capacity 300 Sight Range 24 Terrain Scan Range 24 Terrain Scan Density 410 Jamming Range 16 Cloak Strength 4 Armor Coverage 225 Evasion (%) 78 Melee Accuracy 8 Recoil Reduction 2 Offensive Hacking 30 Defensive Hacking 14 Authchip Count 1 Item Schematics ----------------- Tri-rail Accelerator | -2/Research | Hacked Robot Schematics ------------------ None Fabricated ------------ Nothing Repaired ---------- Imp. VTOL Module | 70% | -4/Factory Studied --------- Cmb. Airjet | -6/Factory | Hacked Lrn. Missile Launcher | -4/Factory | Hacked Alien Tech Used ----------------- None Achievements -------------- All-out Warlord Doshington Watch This! Challenges ------------ None Game ------ Seed ActiveLightpackBank Manual? 0 Play Time 03:12:09 Cumulative 167.3 hours Start 2025.12.31 @ 03:40:59 End 2026.01.05 @ 01:30:10 Sessions 5 Manual Loads 0 Difficulty Rogue Special Mode None Game No. 116 Rogue 116 Adventurer 0 Explorer 0 Win Type 0 Total 3 Types 3/0/0/0/0/0/0/0/0/0 Lore% 49 Gallery% 53 Achievement% 42 Wizard Run 0 Options --------- Layout 2 ASCII 0 Keyboard 0 Movement Mouse Keybinds 0 Fullscreen 2 Font 24/Smallcaps Map View 50x44 Zoom Use 0% Tactical HUD 1 Map Filters NONE Filters NONE Steam 1 RUN: 886bf2f0-ff39-4303-ba96-62ad328503a8